[Event "1000 GM Labor Day Super Swiss 2024"]
[Site "San Jose"]
[Date "2024.09.02"]
[Round "5.1"]
[White "Schitco, Ivan"]
[Black "Mikaelyan, Arman"]
[Result "1/2-1/2"]
[Annotator "TA"]
[ECO "E94"]
[WhiteElo "2518"]
[BlackElo "2529"]
[PlyCount "42"]
[EventDate "2024.08.30"]
[EventType "swiss"]
[EventCountry "USA"]
[SourceTitle "playchess.com"]
[Source "ChessBase"]
[SourceQuality "1"]
[TimeControl "5400+30"]

{[%evp 15,42,35,33,34,37,29,36,31,52,33,35,17,25,23,31,12,35,12,26,27,36,0,0,0,15,-11,6,-4,18]} 1. c4 {[%emt 0:00:04]} Nf6 {[%emt 0:03:16]} 2. Nf3 {[%emt 0:00:06]} g6 {[%emt 0:04:32]} 3. Nc3 {[%emt 0:00:14]} Bg7 {[%emt 0:00:19]} 4. d4 {[%emt 0:00:37]} O-O {[%emt 0:01:00]} 5. e4 {[%emt 0:00:06]} d6 {[%emt 0:00:08]} 6. Be2 {[%emt 0:00:10]} e5 {[%emt 0:00:16]} 7. O-O {[%emt 0:00:13]} Bg4 {[%emt 0:05:38]} 8. d5 {[%emt 0:03:29]} a5 {[%emt 0:00:54]} 9. Ne1 {[%emt 0:01:48][%cal Bf3e1,Be1d3,Bd3f2][%mdl 32]} Bxe2 {[%emt 0:05:10]} 10. Qxe2 {[%emt 0:01:30]} Na6 {[%emt 0:00:07]} 11. Nd3 {[%emt 0:04:58] White is slightly better.} b6 {[%emt 0:00:34]} 12. Bd2 {[%emt 0:04:42]} Nd7 {[%emt 0:03:03]} 13. g3 {[%emt 0:15:10]} f5 {[%emt 0:04:07]} 14. f3 {[%emt 0:02:28]} Nac5 {[%emt 0:04:31]} 15. Nf2 {[%emt 0:03:45]} Rf7 {[%emt 0:10:04]} 16. Kg2 {[%emt 0:09:16]} Qf8 {[%emt 0:02:18]} 17. Nb5 {[%emt 0:06:54]} Rc8 {[%emt 0:02:37]} 18. b4 {[%emt 0:07:24]} axb4 {[%emt 0:00:47] The position is equal.} 19. Bxb4 {[%emt 0:00:02]} h5 {[%emt 0:05:28]} 20. Rae1 {[%emt 0:15:14]} Na6 {[%emt 0:13:02]} 21. Bc3 {[%emt 0:02:38]} Nac5 {[%emt 0:06:01] Weighted Error Value: White=0.14 (very precise) /Black=0.08 (flawless) .  Inaccurate:     	White=2     	---        OK:         	---       	Black=5} 1/2-1/2

[Event "1000 GM Labor Day Super Swiss 2024"]
[Site "San Jose"]
[Date "2024.09.02"]
[Round "5.2"]
[White "Quesada Perez, Yasser"]
[Black "Hevia Alejano, Carlos Antonio"]
[Result "1-0"]
[Annotator "TA"]
[ECO "C07"]
[WhiteElo "2581"]
[BlackElo "2414"]
[PlyCount "63"]
[EventDate "2024.08.30"]
[EventType "swiss"]
[EventCountry "USA"]
[SourceTitle "playchess.com"]
[Source "ChessBase"]
[SourceQuality "1"]
[TimeControl "5400+30"]

{[%evp 15,63,17,18,0,0,0,32,0,16,24,8,-18,13,-18,-41,-58,-41,-33,-17,-34,-31,-42,49,55,48,54,39,0,91,75,94,94,98,77,78,11,0,13,6,8,10,0,0,0,638,621,900,929,853,831]} 1. e4 {[%emt 0:00:16]} e6 {[%emt 0:03:20]} 2. d4 {[%emt 0:00:14]} d5 {[%emt 0:00:09]} 3. Nd2 {[%emt 0:00:08]} c5 {[%emt 0:00:07]} 4. Ngf3 {[%emt 0:00:19]} cxd4 {[%emt 0:00:08]} 5. Nxd4 {[%emt 0:00:09]} Nc6 {[%emt 0:00:33]} 6. Bb5 {[%emt 0:00:12]} Bd7 {[%emt 0:00:28]} 7. Nxc6 {[%emt 0:00:09]} bxc6 {[%emt 0:00:05]} 8. Bd3 {[%emt 0:00:07]} Qc7 {[%emt 0:00:06]} 9. Qe2 {[%emt 0:01:28]} Ne7 {[%emt 0:00:10]} 10. g3 {[%emt 0:02:01]} Ng6 {[%emt 0:06:46]} 11. b3 {[%emt 0:04:19] White is slightly better.} Bb4 {[%emt 0:09:56]} 12. Bb2 {[%emt 0:01:56]} O-O {[%emt 0:01:36]} 13. O-O-O {[%emt 0:09:41]} c5 {[%emt 0:02:38][%cal Oc5c4]} 14. a3 {[%emt 0:02:27]} Bxd2+ {[%emt 0:23:28]} 15. Qxd2 {[%emt 0:00:06]} d4 $1 {[%emt 0:00:10]} 16. f4 {[%emt 0:00:56] Wards off Ne5} Rab8 {[%emt 0:06:37]} 17. h4 {[%emt 0:01:13]} Ne7 {[%emt 0:02:22]} 18. h5 {[%emt 0:01:14]} h6 {[%emt 0:05:42]} ({Black should play} 18... Nc6 $15) 19. g4 $14 {[%emt 0:00:29]} Bb5 {[%emt 0:00:05]} 20. Bxb5 {[%emt 0:15:22]} Rxb5 {[%emt 0:00:02]} 21. Rhg1 {[%emt 0:02:20]} Rd8 {[%emt 0:21:21]} (21... f6 $1 $11 {remains equal.}) 22. g5 $16 {[%emt 0:13:17]} hxg5 {[%emt 0:00:04]} 23. Rxg5 {[%emt 0:10:43]} f6 {[%emt 0:00:02]} 24. Rg3 $36 {[%emt 0:02:37][%mdl 2048] Threatens to win with Rdg1. White is in control.} c4 {[%emt 0:07:17] [#]} 25. Rc3 {[%emt 0:00:05]} Rc5 $1 $11 {[%emt 0:02:03][%cal Oe7d5]} 26. Rxc4 {[%emt 0:00:12]} Rxc4 {[%emt 0:00:01]} 27. bxc4 {[%emt 0:00:08]} Qxc4 {[%emt 0:01:37]} 28. h6 {[%emt 0:05:40]} gxh6 {[%emt 0:02:02]} 29. f5 {[%emt 0:00:45]} e5 $2 {[%emt 0:00:49][%mdl 8192]} (29... exf5 $11 30. Qxh6 Rc8) 30. Qxh6 $18 {[%emt 0:01:21] White is clearly winning.} Rc8 {[%emt 0:04:17][%csl Gc8][%cal Rc4c2]} 31. Rg1+ {[%emt 0:00:32]} (31. Qxf6 $2 Qxc2#) 31... Kf7 {[%emt 0:00:01]} 32. Qh5+ {[%emt 0:00:10] Weighted Error Value: White=0.14 (very precise) /Black=0.43.  Loses game:     	---       	Black=1      Mistake:       	White=1     	Black=2      Inaccurate:     	White=4     	Black=3      OK:         	White=5     	Black=6      Best:        	White=3     	Black=3      Strong:       	---       	Black=2} 1-0

[Event "1000 GM Labor Day Super Swiss 2024"]
[Site "San Jose"]
[Date "2024.09.02"]
[Round "5.3"]
[White "Harsha Bharathakoti"]
[Black "Delgado Ramirez, Neuris"]
[Result "1/2-1/2"]
[Annotator "RC"]
[ECO "E21"]
[WhiteElo "2550"]
[BlackElo "2485"]
[PlyCount "124"]
[EventDate "2024.08.30"]
[EventType "swiss"]
[EventCountry "USA"]
[SourceTitle "playchess.com"]
[Source "ChessBase"]
[SourceQuality "1"]
[TimeControl "5400+30"]

1. d4 {[%emt 0:00:03]} Nf6 {[%emt 0:20:41]} 2. c4 {[%emt 0:00:12]} e6 {[%emt 0:00:20]} 3. Nc3 {[%emt 0:00:31]} Bb4 {[%emt 0:00:07]} 4. Nf3 {[%emt 0:00:10]} b6 {[%emt 0:00:56]} 5. Qb3 {[%emt 0:00:07]} Qe7 {[%emt 0:00:16]} 6. g3 {[%emt 0:08:57]} Bb7 {[%emt 0:01:45]} 7. Bg2 {[%emt 0:00:05]} Bxc3+ {[%emt 0:04:25]} 8. Qxc3 {[%emt 0:00:53]} Be4 {[%emt 0:00:06]} 9. O-O {[%emt 0:01:57]} d6 {[%emt 0:00:49]} 10. b3 {[%emt 0:01:40]} Nbd7 {[%emt 0:00:16]} 11. Rd1 {[%emt 0:05:01]} O-O {[%emt 0:00:47]} 12. Bb2 {[%emt 0:01:30]} Rfe8 {[%emt 0:00:57]} 13. Bf1 {[%emt 0:02:42]} c5 {[%emt 0:01:09]} 14. dxc5 {[%emt 0:22:55]} Nxc5 {[%emt 0:01:11]} 15. Rac1 {[%emt 0:04:17]} Rad8 {[%emt 0:00:36]} 16. h3 {[%emt 0:08:48]} h6 {[%emt 0:00:49]} 17. Qe3 {[%emt 0:00:23]} e5 {[%emt 0:01:03]} 18. b4 {[%emt 0:07:18]} Ne6 {[%emt 0:01:07]} 19. a3 {[%emt 0:00:06]} Bb7 {[%emt 0:06:35]} 20. Bg2 {[%emt 0:03:04]} Qc7 {[%emt 0:02:24]} 21. Qb3 {[%emt 0:02:47]} Qc8 {[%emt 0:01:17]} 22. h4 {[%emt 0:02:19]} Qa8 {[%emt 0:03:03]} 23. Bh3 {[%emt 0:00:57]} a5 {[%emt 0:01:18]} 24. Qe3 {[%emt 0:04:17]} Bc6 {[%emt 0:00:54]} 25. Qxb6 {[%emt 0:13:37]} axb4 {[%emt 0:05:46]} 26. axb4 {[%emt 0:00:04]} Bxf3 {[%emt 0:03:11]} 27. exf3 {[%emt 0:00:03]} Qxf3 {[%emt 0:00:14]} 28. Bg2 {[%emt 0:00:04]} Qb3 {[%emt 0:01:38]} 29. Bc3 {[%emt 0:00:11]} d5 {[%emt 0:06:02]} 30. cxd5 {[%emt 0:05:01]} Nxd5 {[%emt 0:00:54]} 31. Bxd5 {[%emt 0:00:13]} Rxd5 {[%emt 0:00:08]} 32. Rxd5 {[%emt 0:00:03]} Qxd5 {[%emt 0:00:09]} 33. Qa5 {[%emt 0:00:02]} Qxa5 {[%emt 0:04:17]} 34. bxa5 {[%emt 0:00:02]} Ra8 {[%emt 0:00:36]} 35. Rb1 {[%emt 0:04:19]} Rc8 {[%emt 0:05:06]} 36. Rb3 {[%emt 0:03:15]} f6 {[%emt 0:02:57]} 37. Ra3 {[%emt 0:00:35]} Ra8 {[%emt 0:02:39]} 38. Kg2 {[%emt 0:00:11]} Kf7 {[%emt 0:00:12]} 39. Kf3 {[%emt 0:00:33]} Nc7 {[%emt 0:01:13]} 40. Rb3 {[%emt 0:00:37]} Nd5 {[%emt 0:01:37]} 41. Bd2 {[%emt 0:00:25]} f5 {[%emt 0:00:50]} 42. Rb7+ {[%emt 0:00:02]} Kf6 {[%emt 0:00:55]} 43. Rd7 {[%emt 0:00:03]} Ne7 {[%emt 0:00:20]} 44. Bb4 {[%emt 0:00:45]} Ng8 {[%emt 0:02:50]} 45. Rb7 {[%emt 0:01:14]} g5 {[%emt 0:01:54]} 46. hxg5+ {[%emt 0:00:39]} hxg5 {[%emt 0:00:05]} 47. Ke3 {[%emt 0:00:18]} Ke6 {[%emt 0:00:16]} 48. Kd3 {[%emt 0:00:31]} f4 {[%emt 0:00:34]} 49. Kc4 {[%emt 0:00:25]} e4 {[%emt 0:00:46]} 50. gxf4 {[%emt 0:00:28]} gxf4 {[%emt 0:00:08]} 51. Kb5 {[%emt 0:00:02]} Nf6 {[%emt 0:00:31]} 52. a6 {[%emt 0:00:23]} Nd5 {[%emt 0:00:14]} 53. Ba5 {[%emt 0:01:24]} f3 {[%emt 0:00:29]} 54. Be1 {[%emt 0:00:29]} e3 {[%emt 0:03:05]} 55. fxe3 {[%emt 0:00:29]} Nxe3 {[%emt 0:00:04]} 56. a7 {[%emt 0:00:06]} Ng4 {[%emt 0:00:08]} 57. Ka6 {[%emt 0:00:50]} f2 {[%emt 0:00:10]} 58. Bxf2 {[%emt 0:00:02]} Nxf2 {[%emt 0:00:06]} 59. Rb8 {[%emt 0:00:02]} Rxa7+ {[%emt 0:00:06]} 60. Kxa7 {[%emt 0:00:04]} Ne4 {[%emt 0:00:05]} 61. Re8+ {[%emt 0:00:03]} Kd5 {[%emt 0:00:21]} 62. Rxe4 {[%emt 0:00:02]} Kxe4 {[%emt 0:00:06]} 1/2-1/2

[Event "1000 GM Labor Day Super Swiss 2024"]
[Site "San Jose"]
[Date "2024.09.02"]
[Round "5.4"]
[White "Koustav Chatterjee"]
[Black "Macovei, Andrei"]
[Result "1/2-1/2"]
[Annotator "TA"]
[ECO "E53"]
[WhiteElo "2524"]
[BlackElo "2466"]
[PlyCount "35"]
[EventDate "2024.08.30"]
[EventType "swiss"]
[EventCountry "USA"]
[SourceTitle "playchess.com"]
[Source "ChessBase"]
[SourceQuality "1"]
[TimeControl "5400+30"]

{[%evp 18,35,4,-1,7,0,20,9,9,4,7,19,20,2,13,19,11,0,22,27]} 1. d4 {[%emt 0:01:34]} Nf6 {[%emt 0:00:10]} 2. c4 {[%emt 0:00:24]} e6 {[%emt 0:00:08]} 3. Nc3 {[%emt 0:00:05]} Bb4 {[%emt 0:00:11]} 4. e3 {[%emt 0:00:05]} O-O {[%emt 0:00:11]} 5. Bd3 {[%emt 0:00:04]} d5 {[%emt 0:00:41]} 6. a3 {[%emt 0:00:05]} Bxc3+ {[%emt 0:00:08]} 7. bxc3 {[%emt 0:00:06]} dxc4 {[%emt 0:00:02]} 8. Bxc4 {[%emt 0:00:06]} c5 {[%emt 0:00:05]} 9. Nf3 {[%emt 0:00:04]} Qc7 {[%emt 0:00:14]} 10. Be2 {[%emt 0:00:07] The position is equal.} b6 {[%emt 0:00:21]} 11. Bb2 {[%emt 0:00:06]} cxd4 {[%emt 0:00:22]} 12. cxd4 {[%emt 0:00:05]} Ba6 {[%emt 0:00:04]} 13. O-O {[%emt 0:00:11]} Bxe2 {[%emt 0:00:34]} 14. Qxe2 {[%emt 0:00:06]} Nbd7 {[%emt 0:00:14]} 15. e4 {[%emt 0:00:21]} Rfc8 {[%emt 0:00:14]} 16. Rfc1 {[%emt 0:00:05] Against Qc2} Qb7 {[%emt 0:00:08]} 17. Re1 {[%emt 0:00:05]} b5 {[%emt 0:00:11]} 18. Rab1 {[%emt 0:01:44] An uneventful encounter.   Weighted Error Value: White=0.07 (flawless) /Black=0.07 (flawless) .  OK:         	White=2     	Black=2} 1/2-1/2

[Event "1000 GM Labor Day Super Swiss 2024"]
[Site "San Jose"]
[Date "2024.09.02"]
[Round "5.5"]
[White "Batchuluun, Tsegmed"]
[Black "Cordova, Emilio"]
[Result "0-1"]
[Annotator "TA"]
[ECO "A90"]
[WhiteElo "2458"]
[BlackElo "2519"]
[PlyCount "58"]
[EventDate "2024.08.30"]
[EventType "swiss"]
[EventCountry "USA"]
[SourceTitle "playchess.com"]
[Source "ChessBase"]
[SourceQuality "1"]
[TimeControl "5400+30"]

{[%evp 10,58,61,52,42,51,44,40,47,29,54,45,46,29,34,21,22,25,37,18,22,34,82,7,7,0,0,0,0,0,0,0,0,0,0,0,0,-102,-98,-583,0,-575,-562,-578,-572,-588,-592,-571,-560,-616,-608]} 1. d4 {[%emt 0:00:02]} e6 {[%emt 0:01:35]} 2. c4 {[%emt 0:00:24]} f5 {[%emt 0:01:00]} 3. g3 {[%emt 0:00:39]} Nf6 {[%emt 0:01:21]} 4. Bg2 {[%emt 0:00:12]} Bb4+ {[%emt 0:02:13]} 5. Bd2 {[%emt 0:02:44]} Qe7 {[%emt 0:01:35]} 6. Nf3 {[%emt 0:01:13]} Bxd2+ {[%emt 0:01:56]} 7. Nbxd2 {[%emt 0:00:26]} d6 {[%emt 0:01:15][%cal Bd7d6,Bd6e5,Be5e4][%mdl 32]} 8. O-O {[%emt 0:00:07]} O-O {[%emt 0:02:20] White is slightly better.} 9. Re1 {[%emt 0:00:38]} e5 {[%emt 0:09:44] Strongly threatening ...e4.} 10. e4 {[%emt 0:09:00]} Nc6 {[%emt 0:00:36]} 11. dxe5 {[%emt 0:11:57]} dxe5 {[%emt 0:00:34]} 12. exf5 {[%emt 0:00:10]} Bxf5 {[%emt 0:00:20]} 13. Qb3 {[%emt 0:00:26]} Rab8 {[%emt 0:01:48]} 14. Qc3 {[%emt 0:19:35]} Rbe8 {[%emt 0:06:04]} 15. Re2 {[%emt 0:06:34]} Qd8 {[%emt 0:07:44]} (15... Nd7 $14 {is more appropriate.}) 16. Nb3 {[%emt 0:16:06]} (16. Nxe5 Nd4 17. Ree1 Nc2 $15) (16. Rae1 $1 $16) 16... e4 $11 {[%emt 0:23:50]} 17. Nfd4 {[%emt 0:00:09]} Nxd4 {[%emt 0:00:16]} 18. Qxd4 {[%emt 0:02:27]} b6 {[%emt 0:04:03]} 19. Rae1 {[%emt 0:03:44]} Qc8 {[%emt 0:09:06]} 20. Nd2 {[%emt 0:02:26][%cal Rd2e4]} Rd8 {[%emt 0:04:01]} 21. Qc3 {[%emt 0:00:08][%cal Rd2e4]} Bg4 $1 $36 {[%emt 0:00:28][%mdl 2048] Black is more active.} 22. Re3 {[%emt 0:00:13]} Qf5 {[%emt 0:00:10]} 23. Qc2 {[%emt 0:14:01] [#]} (23. Nxe4 $2 Nxe4 24. Rxe4 Qxf2+ 25. Kh1 Rd2 $19) (23. f4 $11 {remains equal.} exf3 24. Nxf3) 23... Nd5 $1 $17 {[%emt 0:06:31] Black is more active.} 24. cxd5 $4 {[%emt 0:00:14][%mdl 8192]} (24. Nf1 $17 Nb4 (24... Nxe3 25. Nxe3 Qd7 26. Nxg4 $17) 25. Qxe4) 24... Qxf2+ $19 {[%emt 0:00:23]} 25. Kh1 {[%emt 0:00:02] [#]} Bf3 {[%emt 0:00:17] Black is clearly winning.} (25... Rxd5 26. Qc4 Qxd2 27. Bxe4 $11) 26. Nxf3 {[%emt 0:06:40]} Qxc2 {[%emt 0:00:14]} 27. Rxe4 {[%emt 0:00:08]} Rxd5 {[%emt 0:00:51][%cal Od5d1] White must now prevent ...Rd1!} 28. R4e2 {[%emt 0:00:02]} Qc5 {[%emt 0:01:02]} 29. Ne5 {[%emt 0:00:06]} Rd6 {[%emt 0:00:37] Weighted Error Value: White=0.31/Black=0.04 (flawless) .  Loses game:     	White=2     	---        Mistake:       	White=2     	Black=1      OK:         	White=14    	Black=13     Best:        	---       	Black=1      Strong:       	---       	Black=2} 0-1

[Event "1000 GM Labor Day Super Swiss 2024"]
[Site "San Jose"]
[Date "2024.09.02"]
[Round "5.6"]
[White "Sheng, Joshua"]
[Black "Chen, Ryo"]
[Result "1/2-1/2"]
[Annotator "TA"]
[ECO "B51"]
[WhiteElo "2474"]
[BlackElo "2408"]
[PlyCount "90"]
[EventDate "2024.08.30"]
[EventType "swiss"]
[EventCountry "USA"]
[SourceTitle "playchess.com"]
[Source "ChessBase"]
[SourceQuality "1"]
[TimeControl "5400+30"]

{[%evp 11,90,17,35,29,26,29,54,25,44,12,31,18,18,14,52,45,50,42,45,45,55,45,45,39,47,41,39,36,58,44,58,55,54,35,71,26,82,66,86,34,21,0,69,44,54,0,31,-214,-207,-215,-235,-227,-213,-234,-217,-261,0,0,0,0,0,-12,-15,-22,0,0,0,0,0,0,0,0,0,0,0,0,0,0,0,0,0]} 1. e4 {[%emt 0:02:06]} c5 {[%emt 0:00:24]} 2. Nf3 {[%emt 0:00:03]} d6 {[%emt 0:00:04]} 3. Bb5+ {[%emt 0:00:03]} Nd7 {[%emt 0:02:37]} 4. O-O {[%emt 0:00:07]} a6 {[%emt 0:00:19]} 5. Be2 {[%emt 0:00:04]} Ngf6 {[%emt 0:00:10]} 6. d3 {[%emt 0:00:05] B51: Sicilian: Moscow Variation (3 Bb5+) without 3...Bd7.} g6 {[%emt 0:00:38]} 7. c4 {[%emt 0:00:07]} Bg7 {[%emt 0:09:08]} 8. Nc3 {[%emt 0:00:13]} e5 {[%emt 0:06:36]} 9. Ne1 $146 {[%emt 0:04:23]} ({Predecessor:} 9. a3 O-O 10. b4 Ne8 11. Rb1 b6 12. bxc5 dxc5 13. Nd5 Nd6 14. Bd2 Rb8 15. Bc3 {½-½ Psyk,R (2461)-Velpula,S (2444) Pozarevac Rudar GM 01 2024 (7.1)}) 9... Rb8 {[%emt 0:09:04]} 10. Rb1 {[%emt 0:05:16]} Nf8 {[%emt 0:08:12]} 11. Nc2 {[%emt 0:01:32]} Ne6 {[%emt 0:58:48]} 12. b4 {[%emt 0:00:13]} cxb4 {[%emt 0:00:00]} 13. Nxb4 {[%emt 0:00:04]} Bd7 {[%emt 0:00:00]} 14. Be3 {[%emt 0:01:55]} O-O {[%emt 0:00:00]} 15. Qd2 {[%emt 0:00:59]} Bc6 {[%emt 0:00:00]} 16. Rb2 {[%emt 0:01:30]} Nd7 {[%emt 0:00:00]} 17. Rfb1 {[%emt 0:00:54]} f5 {[%emt 0:00:00]} 18. f3 {[%emt 0:05:00]} Bf6 {[%emt 0:00:00]} 19. Ncd5 {[%emt 0:04:33]} Bxd5 {[%emt 0:00:00]} 20. Nxd5 {[%emt 0:02:47]} Ndc5 {[%emt 0:00:00]} 21. exf5 {[%emt 0:02:15]} gxf5 {[%emt 0:00:00]} 22. Rb6 {[%emt 0:00:47]} f4 $1 {[%emt 0:00:00]} 23. Bf2 {[%emt 0:01:42]} Bg7 {[%emt 0:00:00]} (23... Qd7 $11) 24. Kh1 {[%emt 0:03:16]} Qd7 {[%emt 0:00:00]} 25. g3 {[%emt 0:02:59]} (25. Nc3 $16) 25... fxg3 {[%emt 0:00:00]} 26. hxg3 {[%emt 0:00:11]} Nd4 {[%emt 0:00:00]} (26... e4 $11 27. dxe4 Nxe4 28. fxe4 Rxf2) 27. Kg2 $14 {[%emt 0:01:01]} Nce6 {[%emt 0:00:00]} 28. Bd1 {[%emt 0:04:12]} (28. Bxd4 $14 Nxd4 29. Qe3) 28... Rf7 {[%emt 0:00:00]} 29. f4 $2 {[%emt 0:04:44]} (29. Nc3 $14 {stays ahead.}) 29... exf4 $19 {[%emt 0:01:41]} 30. gxf4 {[%emt 0:05:02]} Nxf4+ {[%emt 0:05:25]} 31. Nxf4 {[%emt 0:00:09]} Rbf8 {[%emt 0:00:09]} 32. Bg3 {[%emt 0:17:06] [#]} Be5 $1 {[%emt 0:00:21]} 33. Qe1 {[%emt 0:05:41]} (33. Nh5 Qf5 34. Kh2 (34. Rxb7 $2 {is a self mate.} Qf1+ 35. Kh2 Rf2+) 34... Qg6 $19 (34... Qxh5+ $2 35. Bxh5 Rf2+ 36. Qxf2 $18)) 33... Bxf4 $2 {[%emt 0:02:22]} (33... Rxf4 $19 34. Bxf4 Rxf4 35. Qg3+ (35. Rxb7 $2 {loses.} Qc6+ 36. Kg1 Nf3+ 37. Bxf3 Qxf3 $19) 35... Kf8 36. Rxb7 Qc6+ 37. Kg1 Rf1+ 38. Kxf1 Bxg3 39. Rxh7 d5) 34. Rxb7 $11 {[%emt 0:02:09]} Qxb7+ {[%emt 0:00:46]} 35. Rxb7 {[%emt 0:00:04]} Rxb7 {[%emt 0:00:04]} 36. Bxf4 {[%emt 0:02:42]} Rxf4 {[%emt 0:00:35]} 37. Qe8+ {[%emt 0:01:42]} Rf8 {[%emt 0:00:11]} 38. Qe4 {[%emt 0:00:42]} Rg7+ $1 {[%emt 0:00:14]} 39. Kh3 {[%emt 0:00:37]} Nf5 {[%emt 0:00:53]} 40. Bg4 {[%emt 0:01:21]} Nh6 {[%emt 0:00:20]} 41. Qe6+ {[%emt 0:02:04]} Nf7 {[%emt 0:00:10]} 42. Bh5 {[%emt 0:00:33]} Rg5 {[%emt 0:01:41]} 43. Bxf7+ {[%emt 0:02:32]} Rxf7 {[%emt 0:00:04]} 44. Qxd6 {[%emt 0:00:05]} Rg6 {[%emt 0:00:19]} 45. Qd5 {[%emt 0:00:58]} Kg7 {[%emt 0:01:45]} 1/2-1/2

[Event "1000 GM Labor Day Super Swiss 2024"]
[Site "San Jose"]
[Date "2024.09.02"]
[Round "5.7"]
[White "Corrales Jimenez, Fidel"]
[Black "Yoo, Christopher Woojin"]
[Result "1-0"]
[Annotator "TA"]
[ECO "B12"]
[WhiteElo "2564"]
[BlackElo "2616"]
[PlyCount "109"]
[EventDate "2024.08.30"]
[EventType "swiss"]
[EventCountry "USA"]
[SourceTitle "playchess.com"]
[Source "ChessBase"]
[SourceQuality "1"]
[TimeControl "5400+30"]

{[%evp 38,109,0,-33,-44,-15,23,0,65,80,69,79,67,65,156,151,147,104,90,50,97,91,166,163,154,139,193,165,348,356,362,250,263,275,279,259,257,210,329,333,330,321,319,318,334,323,547,572,548,564,541,535,545,546,504,366,389,386,600,583,825,792,939,878,870,848,823,802,781,640,502,615,615,615]} 1. e4 {[%emt 0:03:15]} c6 {[%emt 0:00:05]} 2. d4 {[%emt 0:00:19]} d5 {[%emt 0:00:04]} 3. e5 {[%emt 0:00:22]} Bf5 {[%emt 0:01:30]} 4. Nd2 {[%emt 0:00:12]} e6 {[%emt 0:01:41]} 5. Nb3 {[%emt 0:00:07]} Nd7 {[%emt 0:06:14]} 6. Nf3 {[%emt 0:00:05]} Ne7 {[%emt 0:02:32] B12: Caro-Kann: Advance Variation.} 7. Be2 {[%emt 0:00:14]} h6 {[%emt 0:01:10]} 8. O-O {[%emt 0:00:15]} Bh7 {[%emt 0:01:05]} 9. a4 $1 {[%emt 0:00:15][%mdl 4] is currently scoring better than 9.Bd2.} a5 {[%emt 0:01:35]} 10. Bd2 {[%emt 0:00:21]} Qb6 {[%emt 0:04:09]} 11. h3 {[%emt 0:02:29]} Be4 $146 {[%emt 0:04:22]} ({Predecessor:} 11... Ng6 12. Qe1 Bb4 13. Bxb4 Qxb4 14. Qxb4 axb4 15. Bd3 c5 16. Nxc5 Nxc5 17. dxc5 Ra5 {1-0 So,W (2770)-Carlsen,M (2862) Skilling op KO rapid 2020 (3.31)}) 12. Ne1 {[%emt 0:02:03]} Bh7 {[%emt 0:02:48]} 13. Rc1 {[%emt 0:10:35]} Nf5 {[%emt 0:02:51]} 14. Nf3 {[%emt 0:00:53]} Bb4 {[%emt 0:02:59]} 15. c3 {[%emt 0:01:32]} Be7 {[%emt 0:00:35]} 16. Re1 {[%emt 0:08:39]} O-O {[%emt 0:03:02]} 17. Bd3 {[%emt 0:03:05]} Bg6 {[%emt 0:01:19]} 18. Bf1 {[%emt 0:08:29]} Rfd8 {[%emt 0:12:27]} 19. g3 {[%emt 0:02:29]} Bh7 {[%emt 0:06:46]} 20. Kg2 {[%emt 0:03:35]} c5 {[%emt 0:02:18]} 21. Bb5 {[%emt 0:00:58]} cxd4 {[%emt 0:02:14]} 22. cxd4 {[%emt 0:00:11]} Bf8 {[%emt 0:00:10]} (22... Nb8 $1 $11) 23. g4 $14 {[%emt 0:10:09]} Ne7 {[%emt 0:00:16]} 24. g5 $1 {[%emt 0:00:17]} h5 {[%emt 0:08:02]} 25. Nh4 {[%emt 0:00:29]} Be4+ {[%emt 0:00:30] [#]} (25... Nb8 $14) 26. Rxe4 $1 $16 {[%emt 0:10:58]} dxe4 {[%emt 0:00:04]} 27. Qxh5 {[%emt 0:00:09]} g6 {[%emt 0:00:23]} 28. Qe2 {[%emt 0:00:24]} (28. Qg4 {keeps more tension.} Kg7 29. Qxe4 Nb8 30. Nc5) 28... Bg7 {[%emt 0:05:17]} (28... Nb8 $1 $14) 29. Qxe4 {[%emt 0:00:47]} Nf8 {[%emt 0:00:23]} (29... Nb8 $16) 30. Nf3 $18 {[%emt 0:02:26]} Rd5 {[%emt 0:01:46]} 31. Nc5 {[%emt 0:02:43]} Nc6 {[%emt 0:01:55]} (31... Qa7 $16 {was worth a try.} 32. Be3 (32. Bc4 b6 $18) 32... Rc8) 32. Be3 {[%emt 0:01:06]} Nd7 $2 {[%emt 0:03:36]} (32... Ne7 33. Bc4 Rxc5) 33. Nxb7 $18 {[%emt 0:02:34]} (33. Nxe6 fxe6 34. Qxg6 Ne7 $16) 33... Na7 {[%emt 0:01:13]} 34. Nc5 {[%emt 0:01:15]} Nxc5 {[%emt 0:00:31]} 35. dxc5 {[%emt 0:00:53]} (35. Rxc5 Nxb5 36. Rxb5 (36. axb5 Rad8 $11) 36... Rxb5 37. Qxa8+ (37. axb5 Rb8 $17) 37... Qb8 $11) 35... Qc7 {[%emt 0:00:16]} 36. h4 {[%emt 0:11:07]} Nc6 {[%emt 0:04:08]} 37. Bc4 {[%emt 0:01:31]} Rdd8 {[%emt 0:00:05]} (37... Qd7 {keeps fighting.} 38. h5 gxh5) 38. h5 $1 $18 {[%emt 0:00:09]} Nxe5 {[%emt 0:01:38]} 39. Bf4 {[%emt 0:04:39]} (39. Nxe5 Qxe5 40. Qxe5 Bxe5 41. hxg6 Bxb2 $14) 39... Qc6 {[%emt 0:00:47]} 40. Qxc6 {[%emt 0:00:04]} Nxc6 {[%emt 0:00:02]} 41. hxg6 {[%emt 0:00:05]} Nb4 $2 {[%emt 0:00:47]} (41... Ne7 42. gxf7+ Kxf7 43. Ne5+ Bxe5 44. Bxe5 Rac8) 42. Ne5 $18 {[%emt 0:01:33]} Nd5 {[%emt 0:01:57]} 43. gxf7+ {[%emt 0:00:55]} Kf8 {[%emt 0:00:05]} 44. Bg3 {[%emt 0:00:05]} Bxe5 {[%emt 0:00:18]} 45. Bxe5 {[%emt 0:00:04]} Kxf7 {[%emt 0:00:03]} 46. Rh1 {[%emt 0:04:13]} Rg8 {[%emt 0:02:25]} 47. Kf3 {[%emt 0:04:02]} (47. Rh7+ Kg6 $18) 47... Rxg5 {[%emt 0:00:09]} (47... Rac8 $142 48. Bxd5 (48. Rh7+ Kg6 $18) 48... exd5) 48. Rh7+ $18 {[%emt 0:00:04]} Kf8 {[%emt 0:00:23]} 49. Bxd5 {[%emt 0:00:39]} exd5 {[%emt 0:00:21]} 50. Kf4 {[%emt 0:00:10]} Rg2 {[%emt 0:01:22]} 51. c6 {[%emt 0:01:30]} Ra6 {[%emt 0:01:56]} 52. c7 {[%emt 0:00:22]} Rc6 {[%emt 0:00:05]} 53. Rd7 {[%emt 0:00:23]} Rxf2+ {[%emt 0:00:28]} 54. Ke3 {[%emt 0:00:08]} Rfc2 {[%emt 0:00:17]} 55. Bc3 {[%emt 0:00:04]} ({Weaker is} 55. Rxd5 Ke7 56. Rxa5 Rc1 $18) 1-0